bitfinex-derivatives/quotes_ETHF0:USTF0_20260204
["timestamp","ask_amount","ask_price","bid_price","bid_amount"]
[1770166493322,2.36367801,2242.8,2241.4,2.52677987]
[1770166493819,0.00474689,2242.8,2241.7,2.30338987]
[1770166495321,2.36367801,2242.8,2241.7,2.30338987]
[1770166495521,0.00474689,2242.8,2241.7,2.30338987]
[1770166496221,2.36491196,2242.8,2241.7,2.30338987]
[1770166497413,0.22326,2242.7,2241.1,2.53675885]
[1770166497614,2.36016507,2242.6,2241.1,2.53675885]
[1770166497812,2.36016507,2242.6,2241.3,2.53347488]
[1770166500823,0.00474689,2242.8,2241.6,2.75684488]
[1770166501019,2.36491196,2242.8,2241.6,2.75684488]
[1770166501821,2.36491196,2242.8,2241.6,2.53347488]
[1770166502425,2.36016507,2242.6,2241.6,2.53347488]
[1770166503223,2.36016507,2242.4,2241.1,2.53675885]
[1770166504029,2.36016507,2242.4,2241.1,2.76016885]
[1770166504423,2.36016507,2242.7,2241.3,2.53347488]
[1770166504723,2.36016507,2242.7,2241.3,2.75687488]
[1770166506228,0.00474689,2242.8,2241.6,2.53347488]
[1770166506427,0.00474689,2242.8,2241.9,2.53347488]
[1770166508629,2.36016507,2243.4,2241.9,2.75681488]
[1770166509031,2.36016507,2243.4,2242.1,2.53347488]
[1770166509227,2.36016507,2243.4,2242.1,2.75679488]
[1770166509729,2.36429969,2243.4,2242.1,2.75679488]
[1770166510130,0.00413462,2243.4,2242.3,2.53347488]
[1770166510925,0.00413462,2243.4,2242.5,2.75675488]
[1770166511131,2.36016507,2244.0,2242.7,2.53347488]
[1770166511328,2.36016507,2244.0,2242.7,2.75673488]
[1770166512230,2.36568463,2244.0,2242.9,2.53347488]
[1770166512432,0.00551956,2244.0,2242.9,2.53347488]
[1770166512730,0.00551956,2244.0,2242.9,2.75670488]
[1770166512930,2.36568463,2244.0,2242.9,2.75670488]
[1770166513130,2.36568463,2244.0,2242.9,2.53347488]
[1770166515534,2.58882463,2244.0,2242.7,0.00411373]
[1770166516032,2.58882463,2244.0,2242.7,2.53758861]
[1770166517128,2.36568463,2244.0,2242.7,0.00411373]
[1770166517329,2.36016507,2243.3,2241.8,2.53347488]
[1770166518429,2.36016507,2243.3,2241.8,2.53848255]
[1770166518627,2.36016507,2243.3,2241.8,2.76183255]
[1770166519034,4.98786698,2243.3,2241.8,2.53848255]
[1770166519229,2.36016507,2243.2,2241.8,2.53848255]
[1770166519435,7.8791994,2242.8,2241.8,0.00500767]
[1770166519733,2.36016507,2242.7,2241.8,0.00500767]
[1770166520630,2.36016507,2242.7,2241.8,2.51181003]
[1770166520830,2.36016507,2242.7,2241.8,0.00500767]
[1770166522929,2.36016507,2242.7,2241.8,2.51181003]
[1770166526031,5.29578433,2243.1,2241.8,2.51181003]
[1770166526236,2.50953558,2243.2,2242.0,2.50680236]
[1770166526930,2.50953558,2243.2,2242.0,2.73013236]
[1770166528334,2.50953558,2243.8,2242.4,2.50680236]
[1770166537042,2.50953558,2243.7,2242.4,2.50680236]
[1770166537242,2.50953558,2243.5,2242.4,2.50680236]
[1770166549849,2.50953558,2243.5,2242.4,2.73009236]
[1770166550443,4.84886433,2243.8,2243.4,2.50680236]
[1770166550649,2.50953558,2244.4,2243.4,2.73575007]
[1770166551253,2.43981951,2244.9,2243.4,2.73575007]
[1770166551646,2.44449247,2244.9,2243.4,2.73575007]
[1770166552055,2.43981951,2244.7,2243.4,0.00575771]
[1770166552754,2.66291951,2244.4,2243.4,0.00575771]
[1770166556158,2.45152694,2244.2,2243.4,0.00575771]
[1770166560358,2.45152694,2243.6,2242.5,2.37654926]
[1770166561061,2.67469694,2243.6,2242.5,2.37654926]
[1770166561263,2.45152694,2243.3,2242.5,0.00363991]
[1770166561463,2.67933705,2243.3,2242.0,2.37654926]
[1770166562566,2.67933705,2243.3,2242.0,2.38103704]
[1770166563966,2.45612705,2243.3,2242.1,2.37654926]
[1770166564364,2.45612705,2243.3,2242.2,2.37654926]
[1770166565273,0.00460011,2243.3,2242.2,2.37654926]
[1770166565674,0.22315,2243.8,2242.5,2.37654926]
[1770166565675,2.45152694,2243.8,2242.5,2.37654926]
[1770166565870,2.45152694,2243.8,2242.6,2.37654926]
[1770166566573,2.45729984,2243.8,2242.6,2.37654926]
[1770166567177,2.45152694,2243.6,2242.4,2.37654926]
[1770166570078,0.22316,2243.7,2242.4,2.37654926]
[1770166570373,2.45729984,2243.8,2242.4,2.37654926]
[1770166570777,2.45729984,2243.8,2242.5,2.37654926]
[1770166571576,2.45729984,2243.8,2242.2,2.62700211]
[1770166571771,2.45152694,2243.2,2242.2,2.37654926]
[1770166572379,2.67473694,2243.2,2242.0,2.38103704]
[1770166574073,2.45152694,2243.2,2242.0,2.60436704]
[1770166574680,2.45152694,2243.2,2242.0,2.38103704]
[1770166576381,2.67473694,2243.2,2242.0,0.00448778]
[1770166576974,2.67473694,2243.2,2242.0,2.38103704]
[1770166578681,2.45152694,2242.5,2241.5,2.62700211]
[1770166578887,2.45152694,2242.5,2241.4,2.37654926]
[1770166579686,2.45152694,2242.5,2241.4,2.38070228]
[1770166580586,2.47524982,2242.8,2241.4,2.38070228]
[1770166580886,2.47524982,2242.8,2241.5,2.39416171]
[1770166585287,2.47524982,2242.3,2241.4,0.00415302]
[1770166587392,2.69854982,2242.3,2241.4,0.00415302]
[1770166588092,2.69860982,2241.8,2240.4,2.39416171]
[1770166588291,2.47524982,2241.4,2240.4,2.39416171]
[1770166588590,2.47524982,2241.4,2240.1,2.39416171]
[1770166589091,2.47858241,2241.4,2240.1,2.39880336]
[1770166589586,2.70197241,2241.4,2240.1,0.00464165]
[1770166590187,2.47524982,2241.1,2240.1,0.00464165]
[1770166590385,2.47524982,2241.1,2239.5,2.39416171]
[1770166590386,2.69867982,2241.1,2239.5,2.39416171]
[1770166591096,2.47524982,2240.8,2239.5,2.39416171]
[1770166591389,2.47524982,2240.8,2239.5,2.39737385]
[1770166591593,2.47524982,2240.8,2239.5,0.00321214]
[1770166591991,2.47524982,2240.8,2239.5,2.39737385]
[1770166593295,2.69869982,2240.8,2239.5,2.39737385]
[1770166594797,2.47524982,2240.8,2239.5,2.39737385]
[1770166597800,2.69866982,2241.1,2239.5,2.39737385]
[1770166598396,2.69866982,2241.1,2239.5,2.62095385]
[1770166599097,2.47524982,2241.1,2239.9,2.39416171]
[1770166603402,2.69870982,2240.7,2239.5,0.00321214]
[1770166604000,2.69870982,2240.7,2239.5,2.39737385]
[1770166604507,2.47524982,2240.7,2239.5,2.62095385]
[1770166608205,2.47524982,2240.7,2239.5,2.39737385]
[1770166608400,2.47524982,2240.7,2239.5,0.00321214]
[1770166608908,2.47524982,2240.4,2239.5,2.39737385]
[1770166610211,2.47524982,2240.7,2239.5,2.39737385]
[1770166612412,2.38988617,2240.6,2239.5,2.39737385]
[1770166612615,2.38988617,2240.1,2238.9,2.663383]
[1770166613913,2.38988617,2240.1,2238.9,2.6680708]
[1770166614413,2.38988617,2240.0,2238.9,2.6680708]
[1770166614613,2.61341617,2240.0,2238.9,0.22665236]
[1770166614809,40.05522628,2240.0,2238.9,0.22665236]
[1770166615014,2.38988617,2239.9,2238.9,0.22665236]
[1770166615415,2.38988617,2239.7,2238.9,0.22577445]
[1770166615617,2.35231952,2239.5,2238.3,2.46520701]
[1770166616613,2.35231952,2239.5,2238.3,2.46918361]
[1770166617016,0.00364597,2239.7,2238.6,2.46520701]
[1770166617214,2.35596549,2239.7,2238.6,2.46520701]
[1770166617619,0.00364597,2239.7,2238.6,2.46520701]
[1770166619518,0.00364597,2239.7,2238.6,2.68887701]
[1770166620218,0.00364597,2239.7,2238.7,2.46520701]
[1770166620417,2.35596549,2239.7,2238.7,2.46520701]
[1770166620613,2.35596549,2239.7,2238.5,2.62976628]
[1770166620820,2.35596549,2239.7,2238.6,2.46520701]
[1770166622122,1.387,2239.6,2238.6,2.46520701]
[1770166622318,0.00364597,2239.7,2238.8,2.68885701]
[1770166622520,0.00364597,2239.7,2238.8,2.46520701]
[1770166623023,0.00364597,2239.7,2238.9,2.68884701]
[1770166623225,2.35596549,2239.7,2238.9,2.46520701]
[1770166624025,0.00364597,2239.7,2238.9,2.46520701]
[1770166624221,39.83169628,2240.2,2239.4,2.46520701]
[1770166624524,2.35231952,2240.4,2239.4,2.46520701]
[1770166625225,2.35588729,2240.4,2239.4,2.46520701]
[1770166626024,2.35231952,2240.3,2239.4,2.46520701]
[1770166628317,0.00356777,2240.4,2239.6,2.46520701]
[1770166628527,41.22069628,2240.7,2239.6,2.68877701]
[1770166629425,41.22589831,2240.7,2239.6,2.68877701]
[1770166629827,41.22589831,2240.7,2239.9,2.46520701]
[1770166629828,0.00520203,2240.7,2239.9,2.46520701]
[1770166630126,0.00520203,2240.7,2239.9,2.46916851]
[1770166630327,39.83169628,2241.1,2239.9,2.69270851]
[1770166631027,42.1840158,2241.1,2239.9,2.69270851]
[1770166631427,2.35231952,2241.0,2239.9,2.69270851]
[1770166631631,39.83657421,2241.1,2239.9,2.69270851]
[1770166631632,0.00487793,2241.1,2240.2,2.46520701]
[1770166631928,42.1840158,2241.8,2240.5,0.22347]
[1770166632128,2.35231952,2241.8,2240.6,2.46520701]
[1770166632825,2.35783671,2241.8,2240.6,2.46520701]
[1770166633126,0.00551719,2241.8,2240.6,2.68867701]
[1770166634223,2.35231952,2242.4,2240.9,2.46520701]
[1770166634419,2.35231952,2242.4,2241.1,2.68862701]
[1770166634820,2.35231952,2242.7,2241.1,2.68862701]
[1770166635220,2.35607311,2242.7,2241.2,0.22341]
[1770166635524,2.35607311,2242.7,2241.5,2.46520701]
[1770166635730,0.00375359,2242.7,2241.5,2.46997515]
[1770166636131,0.00375359,2242.7,2241.5,2.69335515]
[1770166637334,0.00375359,2242.7,2241.7,2.46520701]
[1770166640931,2.32024896,2242.7,2241.5,0.00476814]
[1770166641136,2.31649537,2242.5,2241.5,0.00476814]
[1770166641631,0.00375359,2242.7,2241.5,0.00476814]
[1770166641632,0.00375359,2242.7,2241.5,2.30488226]
[1770166641830,0.00375359,2242.7,2241.7,2.30011412]
[1770166642030,2.32024896,2242.7,2241.7,2.30011412]
[1770166643336,2.32024896,2242.7,2241.6,0.22337]
[1770166645240,2.32024896,2242.7,2241.7,2.30011412]
[1770166647635,2.32024896,2242.7,2241.5,0.00476814]
[1770166647938,2.31649537,2242.4,2241.5,2.30488226]
[1770166648533,2.31649537,2242.6,2241.5,2.30488226]
[1770166649642,2.31649537,2242.6,2241.5,0.00476814]
[1770166649842,2.31649537,2242.4,2241.5,0.00476814]
[1770166651842,2.53978537,2242.4,2241.5,0.00476814]
[1770166652146,2.31649537,2242.4,2241.5,2.30488226]
[1770166656846,2.31649537,2242.4,2241.5,0.00476814]
[1770166658345,42.14819165,2242.4,2241.5,0.00476814]
[1770166658544,2.31649537,2242.3,2241.5,0.00476814]
[1770166659251,42.14819165,2242.3,2241.5,0.00476814]
[1770166659450,2.31649537,2242.2,2241.5,0.00476814]
[1770166659951,39.83169628,2242.3,2241.5,0.00476814]
[1770166659952,42.14819165,2242.1,2241.5,0.00476814]
[1770166660151,2.31649537,2242.1,2241.5,0.00476814]
[1770166660450,2.31649537,2242.0,2241.5,0.00476814]
[1770166661455,2.31649537,2241.9,2241.5,0.00476814]
[1770166666850,42.14819165,2242.0,2241.5,0.00476814]
[1770166667054,2.31649537,2241.9,2241.5,0.00476814]
[1770166667255,2.31649537,2241.9,2241.3,2.30011412]
[1770166668255,2.31649537,2241.9,2241.3,2.30574818]
[1770166668456,2.31649537,2241.9,2241.3,0.00563406]
[1770166675361,42.14819165,2241.9,2241.3,0.00563406]
[1770166675664,2.31649537,2241.9,2241.3,0.00563406]
[1770166676262,42.14819165,2241.9,2241.3,0.00563406]
[1770166676463,2.52557989,2241.8,2241.3,0.00563406]
[1770166680366,2.52557989,2241.8,2240.7,5.15358066]
[1770166681263,2.52557989,2241.8,2240.7,2.63442368]
[1770166681564,2.52557989,2241.8,2240.1,0.58581637]
[1770166681565,2.52557989,2241.0,2240.0,2.52381438]
[1770166681863,2.52557989,2240.9,2240.0,2.52381438]
[1770166682462,2.5290633,2240.9,2240.0,2.52838725]
[1770166683064,0.00348341,2240.9,2240.1,2.52381438]
[1770166683364,2.52557989,2241.2,2240.3,2.52381438]
[1770166683565,2.52557989,2241.4,2240.3,2.52381438]
[1770166684366,2.52950457,2241.4,2240.3,2.52381438]
[1770166691669,2.52557989,2241.3,2240.3,2.52381438]
[1770166692268,2.52557989,2241.3,2240.1,5.37710066]
[1770166692469,2.52557989,2241.2,2240.1,2.74733438]
[1770166692868,2.52557989,2241.2,2240.2,2.52381438]
[1770166694763,42.35727617,2241.9,2240.8,2.52381438]
[1770166694963,2.52557989,2241.8,2240.8,2.52381438]
[1770166695874,2.52917928,2241.8,2240.8,2.52381438]
[1770166697669,2.52917928,2241.8,2240.8,2.74726438]
[1770166697863,2.52557989,2241.7,2240.8,2.52381438]
[1770166698571,0.00359939,2241.8,2240.8,2.52381438]
[1770166699071,2.52917928,2241.8,2240.8,2.52381438]
[1770166699668,42.36087556,2241.8,2240.8,2.52381438]
[1770166699973,2.52557989,2241.7,2240.8,2.52381438]
[1770166701475,2.41875671,2241.6,2240.5,2.47671166]
[1770166701971,2.41875671,2241.3,2240.2,2.47671166]
[1770166702171,2.41875671,2241.2,2240.2,2.47671166]
[1770166705270,2.41875671,2241.1,2240.2,2.47671166]
[1770166706272,42.25045299,2241.1,2240.2,2.47671166]
[1770166706474,2.41875671,2241.0,2240.2,2.47671166]
[1770166708777,2.41875671,2241.1,2240.2,2.47671166]
[1770166710182,39.83169628,2241.3,2240.2,2.47671166]
[1770166710381,42.25045299,2241.3,2240.2,2.47671166]
[1770166710884,2.41875671,2241.2,2240.2,2.47671166]
[1770166711084,2.41875671,2240.9,2240.0,0.00457287]
[1770166712783,2.41875671,2240.7,2240.0,0.00457287]
[1770166714682,2.41875671,2240.7,2240.0,2.48128453]
[1770166715081,2.41875671,2240.7,2240.0,0.00457287]
[1770166715587,2.41875671,2240.7,2239.5,5.11994491]
[1770166715784,2.41875671,2240.0,2238.8,2.47671166]
[1770166715988,2.41875671,2240.0,2238.9,2.47671166]
[1770166716583,2.42316168,2240.0,2238.9,2.48038716]
[1770166716784,0.00440497,2240.0,2238.9,2.48038716]
[1770166716989,2.42316168,2240.0,2238.9,2.48038716]
[1770166718084,0.00440497,2240.0,2239.1,2.47671166]
[1770166718488,0.00440497,2240.0,2239.3,2.47671166]
[1770166719685,2.41875671,2240.7,2239.5,2.47671166]
[1770166720582,2.42196676,2240.7,2239.5,2.47671166]
[1770166723999,0.00321005,2240.7,2239.8,2.47671166]
[1770166724895,0.00321005,2240.7,2239.8,2.70026166]
[1770166725991,0.00321005,2240.7,2240.1,2.47671166]
[1770166726196,7.72964954,2241.2,2240.1,2.70022166]
[1770166726197,2.41875671,2241.2,2240.1,2.70022166]
[1770166726794,2.41875671,2241.2,2240.4,2.47671166]
[1770166726995,2.41875671,2241.4,2240.4,2.47671166]
[1770166727200,2.42260958,2241.4,2240.4,2.47671166]
[1770166731198,2.42260958,2241.4,2240.2,2.51266346]
[1770166734204,2.42260958,2241.4,2240.2,2.73617346]
[1770166736710,2.43319601,2241.1,2239.9,2.32526789]
[1770166737611,2.43319601,2241.0,2239.9,2.32526789]
[1770166741708,2.43319601,2241.0,2239.7,2.54882789]
[1770166741908,2.43319601,2240.9,2239.7,2.32526789]
[1770166742310,2.43319601,2240.9,2239.4,2.64323325]
[1770166742311,2.43319601,2240.9,2239.5,2.32526789]
[1770166742508,2.43319601,2240.8,2239.5,2.32526789]
[1770166743315,2.43319601,2240.8,2239.5,2.54884789]
[1770166745116,2.43319601,2240.8,2239.7,2.32526789]
[1770166746516,7.74408884,2241.1,2240.0,2.32526789]
[1770166746711,2.43319601,2241.1,2240.0,2.32526789]
[1770166747515,2.43319601,2241.3,2240.0,2.32526789]
[1770166749011,0.10385287,2241.4,2240.2,2.54877789]
[1770166749216,2.53704888,2241.4,2240.2,2.54877789]
[1770166749412,2.53704888,2241.4,2240.3,2.32526789]
[1770166752819,0.1,2241.1,2240.3,2.32526789]
[1770166754322,0.1,2241.1,2240.3,2.54876789]
[1770166755523,2.53319601,2241.1,2240.3,2.32526789]
[1770166761727,2.53319601,2241.1,2240.1,6.08356171]
[1770166761927,2.53319601,2241.1,2240.2,2.34380846]
[1770166764428,0.1,2240.9,2240.2,2.34380846]
[1770166764918,2.56827745,2240.9,2239.8,6.24947535]
[1770166765120,42.64438739,2240.9,2239.8,2.34380846]
[1770166765319,2.46827745,2240.7,2239.6,4.98704171]
[1770166765520,2.46827745,2240.5,2239.6,2.34380846]
[1770166770932,2.46827745,2240.5,2239.4,2.34380846]
[1770166771136,2.46827745,2240.1,2239.0,2.34380846]
[1770166771531,2.69180745,2240.1,2238.9,0.0036755]
[1770166771834,2.46827745,2239.8,2238.9,0.0036755]
[1770166772035,2.47341096,2239.8,2238.9,0.0036755]
[1770166773336,2.47341096,2239.8,2238.9,2.34748396]
[1770166774635,9.5376765,2240.6,2239.2,2.34380846]
[1770166774636,2.46827745,2240.3,2239.2,2.34380846]
[1770166775536,2.46827745,2240.6,2239.2,2.34380846]
[1770166775839,0.00515413,2240.6,2239.6,2.34380846]
[1770166776638,2.47343158,2240.6,2239.6,2.56737846]
[1770166778040,0.1,2240.1,2239.6,2.56737846]
[1770166778934,0.1,2240.1,2239.6,2.34380846]
[1770166780638,0.00515413,2240.6,2239.6,2.34380846]
[1770166780840,2.47343158,2240.6,2239.6,2.34380846]
[1770166781137,0.00515413,2240.6,2239.8,2.34380846]
[1770166782140,2.46827745,2241.1,2239.8,2.56735846]
[1770166783142,2.47362665,2241.1,2239.8,2.56735846]
[1770166786448,2.47362665,2241.1,2240.0,2.34380846]
[1770166786644,2.47362665,2241.1,2240.1,2.34380846]
[1770166787343,0.0053492,2241.1,2240.3,2.34380846]
[1770166787650,0.0053492,2241.1,2240.3,2.56729846]
[1770166788346,2.46827745,2241.5,2240.3,2.56729846]
[1770166789247,2.47305418,2241.5,2240.3,2.56729846]
[1770166798551,2.47305418,2241.5,2240.4,0.22349]
[1770166798754,2.47305418,2241.5,2240.5,2.37917272]
[1770166798952,2.47305418,2241.5,2240.5,2.38348378]
[1770166800251,2.45786578,2242.0,2240.9,2.37917272]
[1770166800550,2.45786578,2242.7,2241.6,2.60254272]
[1770166800853,2.45786578,2242.7,2241.8,2.37917272]
[1770166801251,2.45786578,2243.4,2241.9,2.60251272]
[1770166801454,2.46339979,2243.4,2241.9,2.60251272]
[1770166801952,2.68658979,2243.4,2241.9,2.37917272]
[1770166802151,2.45786578,2243.3,2241.4,0.22339]
[1770166802453,2.45786578,2243.1,2241.5,2.37917272]
[1770166802656,2.45786578,2243.1,2241.5,2.60255272]
[1770166803454,2.45786578,2243.1,2241.7,2.37917272]
[1770166806757,2.45786578,2243.1,2241.7,2.60253272]
[1770166806957,2.45786578,2243.1,2241.9,2.37917272]
[1770166807163,2.45786578,2243.1,2241.9,2.60251272]
[1770166807455,2.46339979,2243.4,2242.1,2.37917272]
[1770166807756,2.46339979,2243.4,2242.1,2.38321767]
[1770166807960,0.00553401,2243.4,2242.3,2.37917272]
[1770166808159,0.00553401,2243.4,2242.5,2.60245272]
[1770166808460,2.45786578,2243.7,2242.7,2.37917272]
[1770166808759,2.45786578,2243.7,2242.3,3.25117272]
[1770166809155,2.45786578,2243.7,2242.3,2.37917272]
[1770166809353,2.46327147,2243.7,2242.3,2.37917272]
[1770166809753,2.45786578,2243.5,2242.1,0.00404495]
[1770166810264,2.45786578,2243.2,2242.1,0.00404495]
[1770166811054,2.45786578,2243.2,2242.1,2.38321767]
[1770166811461,2.45786578,2243.2,2242.1,0.00404495]
[1770166811859,2.45786578,2243.2,2242.1,2.38321767]
[1770166812959,2.45786578,2243.2,2242.1,0.00404495]
[1770166813261,2.45786578,2243.6,2242.1,2.38321767]
[1770166813456,2.45786578,2243.6,2242.3,2.37917272]
[1770166813658,2.46327147,2243.7,2242.6,2.37917272]
[1770166813860,2.46327147,2243.7,2242.7,2.37917272]
[1770166815758,0.00540569,2243.7,2242.7,2.37917272]
[1770166815957,2.46327147,2243.7,2242.7,2.37917272]
[1770166817665,2.46327147,2243.7,2242.4,2.37917272]
[1770166819767,2.45786578,2244.3,2243.2,2.37917272]
[1770166819963,2.45786578,2244.3,2243.0,0.872]
[1770166820164,2.45786578,2244.3,2242.7,3.25117272]
[1770166820370,2.45786578,2244.3,2242.8,2.37917272]
[1770166820870,2.46155943,2244.3,2242.8,2.37917272]
[1770166821873,2.46155943,2244.3,2242.8,2.60242272]
[1770166822070,2.46155943,2244.3,2243.0,2.48591625]
[1770166822478,0.00369365,2244.3,2243.2,2.48591625]
[1770166822770,0.00369365,2244.3,2243.2,2.70912625]
[1770166822971,0.00369365,2244.3,2243.4,2.48591625]
[1770166823364,2.47000823,2244.3,2243.4,2.48591625]
[1770166823567,0.00369365,2244.3,2243.4,2.70909625]
[1770166823765,2.46631458,2244.8,2243.4,2.70909625]
[1770166824772,2.47048907,2244.8,2243.4,2.70909625]
[1770166825172,2.47048907,2244.8,2243.2,1.23247277]
[1770166825173,2.47048907,2244.8,2243.6,2.48591625]
[1770166825372,2.47048907,2244.8,2243.6,2.70908625]
[1770166825568,0.00417449,2244.8,2243.9,2.48591625]
[1770166825771,2.47048907,2244.8,2243.9,2.49100801]
[1770166825975,2.47048907,2244.8,2243.9,0.00509176]
[1770166826569,2.47048907,2244.8,2243.9,2.49100801]
[1770166827374,2.47048907,2244.8,2243.9,0.00509176]
[1770166829377,2.47048907,2244.8,2243.2,2.48591625]
[1770166830271,2.47048907,2244.8,2243.2,2.49095054]
[1770166830470,2.47048907,2244.8,2243.6,2.48591625]
[1770166831076,2.47048907,2244.8,2243.6,2.70908625]
[1770166831372,2.47048907,2244.8,2244.0,2.48591625]
[1770166831373,0.00417449,2244.8,2244.0,2.48591625]
[1770166831572,2.46631458,2245.4,2244.1,2.70903625]
[1770166832074,2.46631458,2245.4,2243.9,2.48591625]
[1770166832676,2.47193659,2245.4,2243.9,2.48591625]
[1770166832872,2.69493659,2245.4,2243.9,2.48591625]
[1770166833176,2.47193659,2245.4,2243.9,2.70905625]
[1770166833472,2.47193659,2245.4,2244.1,2.48591625]
[1770166834177,2.47193659,2245.4,2244.1,2.70903625]
[1770166836080,2.47193659,2245.4,2244.3,2.48591625]
[1770166836285,0.00562201,2245.4,2244.3,2.48591625]
[1770166837383,2.47193659,2245.4,2244.3,2.48591625]
[1770166837581,2.69493659,2245.4,2244.0,2.48591625]
[1770166838477,2.47193659,2245.4,2244.0,2.48591625]
[1770166839786,2.47193659,2245.4,2244.0,2.70904625]
[1770166841976,2.46631458,2245.1,2243.7,5.1291495]
[1770166842178,2.46631458,2245.1,2243.5,2.48591625]
[1770166842382,2.68934458,2245.1,2243.5,2.48591625]
[1770166843283,2.46631458,2245.0,2243.5,2.48591625]
[1770166844278,2.46631458,2244.9,2243.5,2.48591625]
[1770166845582,2.46631458,2244.9,2243.6,0.22317]
[1770166845780,2.46631458,2244.9,2243.7,2.48591625]
[1770166846280,2.46631458,2245.3,2243.7,2.48591625]
[1770166846683,2.46631458,2245.3,2243.9,2.48591625]
[1770166846982,2.46631458,2245.3,2243.9,2.70905625]
[1770166847580,2.46631458,2245.3,2244.0,2.48591625]
[1770166847779,2.46631458,2245.3,2244.2,2.48591625]
[1770166849980,0.00562201,2245.4,2244.2,2.48591625]
[1770166850185,0.00562201,2245.4,2244.4,5.1291495]
[1770166850382,0.00562201,2245.4,2244.7,2.48591625]
[1770166850687,2.4665628,2246.2,2244.9,2.45652619]
[1770166850886,2.4665628,2246.2,2245.2,2.45652619]
[1770166851482,2.47189093,2246.2,2245.2,2.46044651]
[1770166851787,0.00532813,2246.2,2245.2,2.46044651]
[1770166852183,6.65966901,2247.0,2245.2,2.46044651]
[1770166852184,7.79739399,2247.1,2245.6,2.45652619]
[1770166852483,2.4665628,2247.5,2246.0,2.45652619]
[1770166852682,2.4665628,2247.4,2245.9,2.45652619]
[1770166852882,2.4665628,2247.4,2245.6,3.32752619]
[1770166852883,2.4665628,2247.2,2245.6,3.32752619]
[1770166853288,2.46976911,2247.2,2245.7,2.45652619]
[1770166853690,0.00320631,2247.2,2246.4,2.45652619]
[1770166854887,2.4665628,2247.8,2246.5,2.45652619]
[1770166855894,2.47030425,2247.8,2246.5,2.45652619]
[1770166856594,2.30206954,2248.1,2247.2,2.478037]
[1770166856990,2.30206954,2249.0,2247.2,2.478037]
[1770166857487,2.30206954,2249.0,2247.2,2.48345083]
[1770166857693,2.30206954,2248.7,2247.2,2.48345083]
[1770166858389,2.30206954,2248.7,2247.2,0.00541383]
[1770166858593,2.30206954,2248.3,2247.2,0.00541383]
[1770166860194,0.871,2248.2,2247.2,0.00541383]
[1770166860392,0.22274,2248.1,2247.2,0.00541383]
[1770166860590,2.30206954,2247.9,2246.3,0.2229]
[1770166860788,2.30206954,2247.9,2246.4,0.22289]
[1770166860989,2.30206954,2247.9,2246.5,2.478037]
[1770166861589,2.30206954,2247.9,2246.5,2.48350039]
[1770166861892,2.30206954,2248.4,2247.0,2.478037]
[1770166862092,2.30206954,2248.9,2247.4,2.478037]
[1770166862289,2.30206954,2248.9,2247.8,2.478037]
[1770166862992,2.30206954,2248.9,2247.5,2.478037]
[1770166863192,2.30761134,2249.0,2247.8,2.478037]
[1770166863900,0.0055418,2249.0,2247.8,2.700787]
[1770166864093,2.30206954,2249.6,2248.2,2.478037]
[1770166864299,2.30206954,2250.2,2248.6,2.478037]
[1770166864500,2.30206954,2250.2,2249.0,2.478037]
[1770166864697,2.30206954,2250.2,2248.7,2.700697]
[1770166865302,2.30573345,2250.2,2248.7,2.70571928]
[1770166865507,2.30573345,2250.2,2248.9,2.478037]
[1770166866006,2.30573345,2250.2,2248.7,0.00502228]
[1770166866605,2.30206954,2250.1,2248.7,2.48305928]
[1770166869908,2.30206954,2250.1,2248.7,0.00502228]
[1770166870703,2.30206954,2249.8,2248.1,2.478037]
[1770166871202,2.30206954,2249.8,2248.6,2.478037]
[1770166871409,2.30206954,2249.8,2248.8,2.478037]
[1770166871600,2.30206954,2250.1,2248.8,2.700697]
[1770166871807,2.30206954,2250.1,2248.8,2.70493735]
[1770166872004,2.30206954,2250.1,2248.8,0.00424035]
[1770166872914,3.17206954,2250.1,2248.8,0.00424035]
[1770166873110,2.30206954,2250.0,2248.8,0.00424035]
[1770166874007,3.17206954,2250.0,2248.8,0.00424035]
[1770166874316,2.30206954,2249.9,2248.8,0.00424035]
[1770166876018,2.30206954,2249.7,2248.2,2.478037]
[1770166876312,2.30206954,2249.7,2248.3,2.478037]
[1770166876517,2.30206954,2249.7,2248.3,2.700737]
[1770166876917,2.30206954,2249.7,2248.3,2.70539031]
[1770166879015,2.30206954,2249.7,2248.3,2.48269031]
[1770166879519,2.30206954,2249.7,2248.3,0.00465331]
[1770166879718,2.30206954,2249.5,2248.3,0.00465331]
[1770166880217,2.30206954,2249.5,2248.5,2.478037]
[1770166880613,2.30206954,2249.9,2248.7,2.58359658]
[1770166881018,2.30206954,2249.9,2248.9,2.36092658]
[1770166881317,2.30206954,2249.9,2248.4,2.36092658]
[1770166881816,2.30206954,2249.9,2248.4,2.58362658]
[1770166882017,2.30206954,2249.9,2248.7,2.36092658]
[1770166882313,2.28720945,2250.2,2248.9,2.36092658]
[1770166882514,2.28720945,2250.2,2249.1,2.36092658]
[1770166882719,0.00366391,2250.2,2249.1,2.58355658]
[1770166883216,2.28720945,2250.2,2249.1,2.58355658]
[1770166883523,0.00366391,2250.2,2249.3,2.36092658]
[1770166883924,0.00366391,2250.2,2249.3,2.58353658]
[1770166885621,0.00366391,2250.2,2248.9,7.44307317]
[1770166885622,2.28720945,2250.2,2248.8,2.36092658]
[1770166886718,0.00366391,2250.2,2249.3,2.36092658]
[1770166887114,2.28354554,2250.8,2249.5,2.58350658]
[1770166887318,2.28354554,2250.8,2249.7,2.36092658]
[1770166888223,2.28904656,2250.8,2249.7,2.36092658]
[1770166892925,2.28904656,2250.8,2249.5,2.36092658]
[1770166895320,0.00550102,2250.8,2250.0,2.36092658]
[1770166895521,0.00550102,2250.8,2250.0,2.36496606]
[1770166895721,2.28904656,2250.8,2250.0,0.00403948]
[1770166896122,0.00550102,2250.8,2250.0,2.36496606]
[1770166896923,0.22196456,2251.3,2250.1,2.36092658]
[1770166897124,2.5055101,2251.3,2250.1,2.36092658]
[1770166898028,2.51128378,2251.3,2250.1,2.36092658]
[1770166899426,2.51128378,2251.3,2250.0,0.00403948]
[1770166899622,2.73370378,2251.3,2250.0,0.00403948]
[1770166902130,2.28354554,2251.1,2250.0,0.00403948]
[1770166906830,2.50598554,2251.1,2250.0,0.00403948]
[1770166907232,7.83681673,2251.1,2250.0,0.00403948]
[1770166907534,2.28354554,2251.0,2250.0,0.00403948]
[1770166907733,2.28354554,2251.0,2250.0,2.36496606]
[1770166909335,2.28354554,2251.0,2250.0,0.00403948]
[1770166909934,2.50598554,2251.0,2250.0,0.00403948]
[1770166910234,2.28354554,2250.9,2250.0,0.00403948]
[1770166911435,2.28354554,2250.9,2250.0,2.38538327]
[1770166912239,2.49590785,2250.8,2250.0,2.38538327]
[1770166912940,2.49590785,2250.8,2250.0,0.00403948]
[1770166915442,2.49590785,2250.8,2250.0,2.38538327]
[1770166916343,2.49590785,2250.8,2250.0,0.00403948]
[1770166917143,2.35434039,2250.6,2249.6,2.58318749]
[1770166917439,2.35434039,2250.3,2249.3,2.40210877]
[1770166917645,2.35434039,2250.3,2249.4,2.40210877]
[1770166918237,2.35434039,2250.3,2249.4,2.40681545]
[1770166920348,2.35434039,2250.6,2249.5,2.40210877]